[Event "Live Chess"]
[Site "Chess.com"]
[Date "2024.06.02"]
[Round "-"]
[White "matt1979"]
[Black "lyricalschemes"]
[Result "0-1"]
[WhiteElo "1428"]
[BlackElo "2216"]
[TimeControl "300"]
[EndTime "7:22:57 PDT"]
[Termination "lyricalschemes won by resignation"]

1. f4 {[%clk 0:04:58.9]} 1... e5 {[%clk 0:04:56.7]} 2. fxe5 {[%clk 0:04:57.2]}
2... d6 {[%clk 0:04:55.3]} 3. Nf3 {[%clk 0:04:56.4]} 3... dxe5 {[%clk
0:04:54.1]} 4. e4 {[%clk 0:04:55.8]} 4... Nc6 {[%clk 0:04:53]} 5. Bb5 {[%clk
0:04:54.7]} 5... Bc5 {[%clk 0:04:50.2]} 6. c3 {[%clk 0:04:52.9]} 6... Nf6 {[%clk
0:04:47.9]} 7. d4 {[%clk 0:04:51.4]} 7... exd4 {[%clk 0:04:46.3]} 8. cxd4 {[%clk
0:04:50.1]} 8... Bb4+ {[%clk 0:04:46]} 9. Bd2 {[%clk 0:04:44.6]} 9... O-O {[%clk
0:04:40.5]} 10. Bxc6 {[%clk 0:04:42.5]} 10... Bxd2+ {[%clk 0:04:38.7]} 11. Nbxd2
{[%clk 0:04:39.5]} 11... bxc6 {[%clk 0:04:38.3]} 12. O-O {[%clk 0:04:37.7]}
12... Re8 {[%clk 0:04:37.3]} 13. e5 {[%clk 0:04:35.3]} 13... Nd5 {[%clk
0:04:34.5]} 14. Qe2 {[%clk 0:04:23.5]} 14... Bg4 {[%clk 0:04:31.3]} 15. h3
{[%clk 0:04:20]} 15... Bh5 {[%clk 0:04:28.6]} 16. Qf2 {[%clk 0:04:11.3]} 16...
Bg6 {[%clk 0:04:25.3]} 17. Rac1 {[%clk 0:04:00.3]} 17... Qd7 {[%clk 0:04:21.7]}
18. Ng5 {[%clk 0:03:56.3]} 18... h6 {[%clk 0:04:18.4]} 19. Nge4 {[%clk
0:03:47.4]} 19... Rab8 {[%clk 0:04:14.6]} 20. b3 {[%clk 0:03:44.4]} 20... Nb4
{[%clk 0:04:09.3]} 21. Nc5 {[%clk 0:03:42.3]} 21... Qd5 {[%clk 0:04:07.7]} 22.
Nc4 {[%clk 0:03:30.8]} 22... Rbd8 {[%clk 0:03:57.2]} 23. Rcd1 {[%clk 0:03:24.3]}
23... Bh5 {[%clk 0:03:42.4]} 24. g4 {[%clk 0:03:20.1]} 24... Bg6 {[%clk
0:03:40.8]} 25. h4 {[%clk 0:03:14.2]} 25... Rf8 {[%clk 0:03:29.7]} 26. h5 {[%clk
0:03:11.9]} 26... Bh7 {[%clk 0:03:28]} 27. Nd3 {[%clk 0:02:57.3]} 27... Nxd3
{[%clk 0:03:25.3]} 28. Rxd3 {[%clk 0:02:55.9]} 28... Bxd3 {[%clk 0:03:23.8]} 0-1

[Event "Live Chess"]
[Site "Chess.com"]
[Date "2024.06.02"]
[Round "-"]
[White "LL220284LL"]
[Black "Pandreq"]
[Result "1-0"]
[WhiteElo "2467"]
[BlackElo "1237"]
[TimeControl "300"]
[EndTime "7:23:08 PDT"]
[Termination "LL220284LL won by resignation"]

1. e4 {[%clk 0:04:58.7]} 1... Nf6 {[%clk 0:04:58.7]} 2. Nc3 {[%clk 0:04:56]}
2... d6 {[%clk 0:04:56.3]} 3. Bc4 {[%clk 0:04:53.1]} 3... e5 {[%clk 0:04:53.7]}
4. f4 {[%clk 0:04:52.2]} 4... Bg4 {[%clk 0:04:49.4]} 5. Nf3 {[%clk 0:04:50.8]}
5... Nbd7 {[%clk 0:04:43.3]} 6. O-O {[%clk 0:04:48.6]} 6... Be7 {[%clk 0:04:32]}
7. d3 {[%clk 0:04:44.8]} 7... Nb6 {[%clk 0:04:25.3]} 8. Bb3 {[%clk 0:04:43.9]}
8... Qd7 {[%clk 0:04:11.4]} 9. a4 {[%clk 0:04:39.1]} 9... O-O {[%clk 0:04:08.7]}
10. a5 {[%clk 0:04:36.1]} 10... Nc8 {[%clk 0:04:05.4]} 11. fxe5 {[%clk
0:04:34.9]} 11... dxe5 {[%clk 0:04:01.4]} 12. Be3 {[%clk 0:04:30]} 12... Bd6
{[%clk 0:03:53.6]} 13. Qe1 {[%clk 0:04:27.5]} 13... Ne7 {[%clk 0:03:45.7]} 14.
Qg3 {[%clk 0:04:23.9]} 14... Ng6 {[%clk 0:03:41.3]} 15. Nh4 {[%clk 0:04:17.3]}
15... Nxh4 {[%clk 0:03:25.6]} 16. Qxh4 {[%clk 0:04:15.6]} 16... Be6 {[%clk
0:03:07.5]} 17. Bg5 {[%clk 0:04:02.5]} 17... Be7 {[%clk 0:02:55.7]} 18. Ba4
{[%clk 0:03:55.8]} 18... c6 {[%clk 0:02:46.2]} 19. Kh1 {[%clk 0:03:54.2]} 19...
Qd8 {[%clk 0:02:44.6]} 20. Qe1 {[%clk 0:03:50]} 20... Nd7 {[%clk 0:02:39.3]} 21.
Bd2 {[%clk 0:03:41.8]} 21... Qxa5 {[%clk 0:02:06.1]} 22. Bxc6 {[%clk 0:03:39.2]}
22... Qb6 {[%clk 0:01:59.8]} 23. Bxd7 {[%clk 0:03:33.7]} 23... Bxd7 {[%clk
0:01:57.8]} 24. Nd5 {[%clk 0:03:33.3]} 24... Qd6 {[%clk 0:01:43]} 25. Bb4 {[%clk
0:03:29.7]} 25... Qc7 {[%clk 0:01:04]} 26. Nxc7 {[%clk 0:03:26]} 1-0

[Event "Live Chess"]
[Site "Chess.com"]
[Date "2024.06.02"]
[Round "-"]
[White "gobbles19"]
[Black "JohanKjeldahl"]
[Result "1-0"]
[WhiteElo "2208"]
[BlackElo "1793"]
[TimeControl "300"]
[EndTime "7:23:10 PDT"]
[Termination "gobbles19 won by resignation"]

1. e4 {[%clk 0:04:56.4]} 1... c5 {[%clk 0:04:58.1]} 2. d4 {[%clk 0:04:55]} 2...
cxd4 {[%clk 0:04:56.5]} 3. c3 {[%clk 0:04:54.7]} 3... dxc3 {[%clk 0:04:55.7]} 4.
Nxc3 {[%clk 0:04:54.6]} 4... e6 {[%clk 0:04:54.3]} 5. Bc4 {[%clk 0:04:54.1]}
5... Nc6 {[%clk 0:04:53.2]} 6. Nf3 {[%clk 0:04:53.7]} 6... a6 {[%clk 0:04:50.9]}
7. O-O {[%clk 0:04:53.2]} 7... b5 {[%clk 0:04:49.9]} 8. Bb3 {[%clk 0:04:51.5]}
8... Bb7 {[%clk 0:04:49]} 9. Qe2 {[%clk 0:04:51.2]} 9... Nf6 {[%clk 0:04:47.1]}
10. e5 {[%clk 0:04:41.8]} 10... Ng4 {[%clk 0:04:42.1]} 11. h3 {[%clk 0:04:39.5]}
11... Nh6 {[%clk 0:04:40.2]} 12. Bxh6 {[%clk 0:04:38.1]} 12... gxh6 {[%clk
0:04:39.3]} 13. Ne4 {[%clk 0:04:37.6]} 13... Be7 {[%clk 0:04:37.4]} 14. Rac1
{[%clk 0:04:35.9]} 14... Rg8 {[%clk 0:04:34]} 15. Rfd1 {[%clk 0:04:33.7]} 15...
Rc8 {[%clk 0:04:29.6]} 16. Qe3 {[%clk 0:04:29.4]} 16... Rg6 {[%clk 0:04:27]} 17.
Bc2 {[%clk 0:04:20.2]} 17... Nb4 {[%clk 0:03:37.3]} 18. Nd6+ {[%clk 0:04:12.4]}
18... Bxd6 {[%clk 0:03:34.4]} 19. Bxg6 {[%clk 0:04:11.1]} 19... hxg6 {[%clk
0:03:31.9]} 20. exd6 {[%clk 0:04:06.4]} 20... g5 {[%clk 0:03:21.3]} 21. Rxc8
{[%clk 0:03:55.1]} 21... Bxc8 {[%clk 0:03:16]} 22. Qd4 {[%clk 0:03:53.1]} 22...
f6 {[%clk 0:03:14.1]} 23. Qxb4 {[%clk 0:03:51.9]} 1-0

[Event "Live Chess"]
[Site "Chess.com"]
[Date "2024.06.02"]
[Round "-"]
[White "Mangoalo"]
[Black "Crowded_House"]
[Result "0-1"]
[WhiteElo "1067"]
[BlackElo "1645"]
[TimeControl "300"]
[EndTime "7:23:38 PDT"]
[Termination "Crowded_House won by resignation"]

1. e4 {[%clk 0:04:56.1]} 1... e6 {[%clk 0:04:59.2]} 2. Nf3 {[%clk 0:04:55.3]}
2... d5 {[%clk 0:04:58.7]} 3. exd5 {[%clk 0:04:54.7]} 3... exd5 {[%clk
0:04:56.3]} 4. d4 {[%clk 0:04:54.6]} 4... Bd6 {[%clk 0:04:54.6]} 5. Bg5 {[%clk
0:04:54.5]} 5... f6 {[%clk 0:04:53.2]} 6. Be3 {[%clk 0:04:53.2]} 6... Ne7 {[%clk
0:04:50.4]} 7. Bb5+ {[%clk 0:04:52.8]} 7... c6 {[%clk 0:04:49]} 8. Bd3 {[%clk
0:04:51.3]} 8... O-O {[%clk 0:04:47.7]} 9. Nbd2 {[%clk 0:04:51.2]} 9... h6
{[%clk 0:04:45.7]} 10. O-O {[%clk 0:04:51.1]} 10... Nf5 {[%clk 0:04:42.9]} 11.
Bxf5 {[%clk 0:04:49.5]} 11... Bxf5 {[%clk 0:04:40.8]} 12. Re1 {[%clk 0:04:48]}
12... Re8 {[%clk 0:04:38.5]} 13. Nb3 {[%clk 0:04:44.9]} 13... Nd7 {[%clk
0:04:33.4]} 14. Bd2 {[%clk 0:04:44]} 14... Rxe1+ {[%clk 0:04:31.2]} 15. Qxe1
{[%clk 0:04:43.9]} 15... Qe8 {[%clk 0:04:30.4]} 16. Qxe8+ {[%clk 0:04:42.5]}
16... Rxe8 {[%clk 0:04:29.5]} 17. c3 {[%clk 0:04:38.3]} 17... Nb6 {[%clk
0:04:19.2]} 18. Re1 {[%clk 0:04:36.5]} 18... Rxe1+ {[%clk 0:04:16.8]} 19. Bxe1
{[%clk 0:04:35.5]} 19... Nc4 {[%clk 0:04:15.9]} 20. Bd2 {[%clk 0:04:35.4]} 20...
Nxb2 {[%clk 0:04:11.9]} 21. Nc5 {[%clk 0:04:30.1]} 21... Bxc5 {[%clk 0:04:08.3]}
22. dxc5 {[%clk 0:04:30]} 22... Na4 {[%clk 0:04:00.4]} 23. Kf1 {[%clk
0:04:20.7]} 23... Nxc5 {[%clk 0:03:59.3]} 0-1

[Event "Live Chess"]
[Site "Chess.com"]
[Date "2024.06.02"]
[Round "-"]
[White "JanMur7"]
[Black "ACM42"]
[Result "1-0"]
[WhiteElo "2295"]
[BlackElo "2178"]
[TimeControl "300"]
[EndTime "7:23:41 PDT"]
[Termination "JanMur7 won by checkmate"]

1. c4 {[%clk 0:04:58.7]} 1... Nf6 {[%clk 0:04:59]} 2. Nc3 {[%clk 0:04:57.9]}
2... g6 {[%clk 0:04:58.9]} 3. e4 {[%clk 0:04:56.9]} 3... Bg7 {[%clk 0:04:58.8]}
4. d4 {[%clk 0:04:52.1]} 4... O-O {[%clk 0:04:58.7]} 5. Be2 {[%clk 0:04:51.1]}
5... d6 {[%clk 0:04:55.2]} 6. Bg5 {[%clk 0:04:50.2]} 6... h6 {[%clk 0:04:51]} 7.
Be3 {[%clk 0:04:48.3]} 7... Nc6 {[%clk 0:04:50]} 8. g4 {[%clk 0:04:46]} 8... e5
{[%clk 0:04:49.1]} 9. d5 {[%clk 0:04:44.8]} 9... Nd4 {[%clk 0:04:48.5]} 10. f3
{[%clk 0:04:43]} 10... c5 {[%clk 0:04:44.4]} 11. h4 {[%clk 0:04:37]} 11... Ne8
{[%clk 0:04:34.2]} 12. h5 {[%clk 0:04:35.2]} 12... g5 {[%clk 0:04:33]} 13. Nh3
{[%clk 0:04:33.1]} 13... a6 {[%clk 0:04:28.8]} 14. Nf2 {[%clk 0:04:31.1]} 14...
Rb8 {[%clk 0:04:23.5]} 15. a4 {[%clk 0:04:28.8]} 15... b6 {[%clk 0:04:21.5]} 16.
O-O {[%clk 0:04:27.3]} 16... a5 {[%clk 0:04:20.2]} 17. Ra3 {[%clk 0:04:16.6]}
17... Ba6 {[%clk 0:04:18.3]} 18. Nb5 {[%clk 0:04:10.5]} 18... Bxb5 {[%clk
0:04:14.2]} 19. cxb5 {[%clk 0:04:04]} 19... Bf6 {[%clk 0:03:58.3]} 20. Qd2
{[%clk 0:03:48.3]} 20... Kg7 {[%clk 0:03:54.8]} 21. Rc1 {[%clk 0:03:45.4]} 21...
Rh8 {[%clk 0:03:52.2]} 22. Nd3 {[%clk 0:03:41.3]} 22... Nxe2+ {[%clk 0:03:48.4]}
23. Qxe2 {[%clk 0:03:39.7]} 23... Nc7 {[%clk 0:03:38.4]} 24. Nf2 {[%clk
0:03:36.4]} 24... Ra8 {[%clk 0:03:36.9]} 25. Nh1 {[%clk 0:03:33.3]} 25... Ne8
{[%clk 0:03:31.3]} 26. Ng3 {[%clk 0:03:31.6]} 26... Kf8 {[%clk 0:03:30.4]} 27.
Nf5 {[%clk 0:03:30.4]} 27... Ng7 {[%clk 0:03:28.5]} 28. Qg2 {[%clk 0:03:07.1]}
28... Nxf5 {[%clk 0:03:26.8]} 29. gxf5 {[%clk 0:03:06.2]} 29... Ke7 {[%clk
0:03:26]} 30. Qg4 {[%clk 0:03:04.6]} 30... Rc8 {[%clk 0:03:24]} 31. Rc4 {[%clk
0:03:02.3]} 31... Rg8 {[%clk 0:03:13.8]} 32. Kf1 {[%clk 0:03:01.2]} 32... Qd7
{[%clk 0:03:06.7]} 33. Ke2 {[%clk 0:02:59.1]} 33... Qd8 {[%clk 0:03:05.2]} 34.
Kd3 {[%clk 0:02:57.9]} 34... Qd7 {[%clk 0:03:02.5]} 35. Rac3 {[%clk 0:02:56.9]}
35... Ra8 {[%clk 0:02:57.4]} 36. Rc1 {[%clk 0:02:53.3]} 36... Rac8 {[%clk
0:02:55.8]} 37. R4c2 {[%clk 0:02:51.9]} 37... Qa7 {[%clk 0:02:52.3]} 38. Kc4
{[%clk 0:02:50.4]} 38... Qd7 {[%clk 0:02:50.8]} 39. Rg2 {[%clk 0:02:48.1]} 39...
Rg7 {[%clk 0:02:47.1]} 40. Rcg1 {[%clk 0:02:46.8]} 40... Rcg8 {[%clk 0:02:45.6]}
41. Qh3 {[%clk 0:02:45.2]} 41... Qe8 {[%clk 0:02:39.6]} 42. Rg4 {[%clk
0:02:44.4]} 42... Kd7 {[%clk 0:02:38]} 43. R1g3 {[%clk 0:02:42.4]} 43... Kc7
{[%clk 0:02:36.9]} 44. Qg2 {[%clk 0:02:41.4]} 44... Kb7 {[%clk 0:02:35.7]} 45.
Bd2 {[%clk 0:02:35.1]} 45... Qe7 {[%clk 0:02:34.1]} 46. Qg1 {[%clk 0:02:33.7]}
46... Qd8 {[%clk 0:02:32.8]} 47. Rg2 {[%clk 0:02:32.9]} 47... Qe7 {[%clk
0:02:29.9]} 48. f4 {[%clk 0:02:17.7]} 48... exf4 {[%clk 0:02:23.2]} 49. Bxf4
{[%clk 0:02:16.7]} 49... Qxe4+ {[%clk 0:02:20.8]} 50. Kb3 {[%clk 0:02:12.9]}
50... Qxd5+ {[%clk 0:02:08.6]} 51. Ka3 {[%clk 0:02:11.8]} 51... Qd3+ {[%clk
0:01:55.8]} 52. Ka2 {[%clk 0:02:10.9]} 52... Qc4+ {[%clk 0:01:47.7]} 53. b3
{[%clk 0:02:08.2]} 53... Qd5 {[%clk 0:01:40.3]} 54. Rd2 {[%clk 0:02:04.3]} 54...
Bd4 {[%clk 0:01:35.9]} 55. Be3 {[%clk 0:01:57.7]} 55... Qxf5 {[%clk 0:01:19.8]}
56. Bxd4 {[%clk 0:01:55]} 56... cxd4 {[%clk 0:01:17.5]} 57. Rgxd4 {[%clk
0:01:54.2]} 57... Rd8 {[%clk 0:01:04.5]} 58. Rd5 {[%clk 0:01:50.3]} 58... Qe4
{[%clk 0:00:53.8]} 59. Qc1 {[%clk 0:01:42.1]} 59... Rc8 {[%clk 0:00:48.2]} 60.
Qb2 {[%clk 0:01:41.5]} 60... Rgg8 {[%clk 0:00:43.7]} 61. Rxd6 {[%clk 0:01:40.3]}
61... Rge8 {[%clk 0:00:36.2]} 62. Rd7+ {[%clk 0:01:26]} 62... Rc7 {[%clk
0:00:30.6]} 63. Rxc7+ {[%clk 0:01:23.3]} 63... Kxc7 {[%clk 0:00:29.8]} 64. Qc3+
{[%clk 0:01:21.5]} 64... Kb8 {[%clk 0:00:25.3]} 65. Qf6 {[%clk 0:01:16.2]} 65...
Qe6 {[%clk 0:00:19.1]} 66. Qc3 {[%clk 0:00:57.7]} 66... Rc8 {[%clk 0:00:18.2]}
67. Qg3+ {[%clk 0:00:55.6]} 67... Kb7 {[%clk 0:00:16.3]} 68. Qg2+ {[%clk
0:00:52.1]} 68... Ka7 {[%clk 0:00:15.1]} 69. Re2 {[%clk 0:00:49.8]} 69... Qf5
{[%clk 0:00:13.5]} 70. Re7+ {[%clk 0:00:47.1]} 70... Rc7 {[%clk 0:00:10.6]} 71.
Rxc7+ {[%clk 0:00:45]} 71... Kb8 {[%clk 0:00:10.5]} 72. Qb7# {[%clk 0:00:44]}
1-0

[Event "Live Chess"]
[Site "Chess.com"]
[Date "2024.06.02"]
[Round "-"]
[White "TedUdale"]
[Black "PavelChernomordik"]
[Result "0-1"]
[WhiteElo "2102"]
[BlackElo "2497"]
[TimeControl "300"]
[EndTime "7:23:48 PDT"]
[Termination "PavelChernomordik won by resignation"]

1. e4 {[%clk 0:04:57.7]} 1... g6 {[%clk 0:04:58.9]} 2. Nc3 {[%clk 0:04:56.6]}
2... Bg7 {[%clk 0:04:57.9]} 3. f4 {[%clk 0:04:55.8]} 3... e6 {[%clk 0:04:54.6]}
4. Nf3 {[%clk 0:04:54.9]} 4... d5 {[%clk 0:04:53.4]} 5. d3 {[%clk 0:04:50.7]}
5... Ne7 {[%clk 0:04:50.9]} 6. Be2 {[%clk 0:04:49.1]} 6... c5 {[%clk 0:04:49.4]}
7. O-O {[%clk 0:04:46.4]} 7... Nbc6 {[%clk 0:04:48.4]} 8. a3 {[%clk 0:04:43.7]}
8... O-O {[%clk 0:04:46.7]} 9. Qe1 {[%clk 0:04:42.9]} 9... Nd4 {[%clk
0:04:41.7]} 10. Nxd4 {[%clk 0:04:41.3]} 10... cxd4 {[%clk 0:04:40.5]} 11. Nd1
{[%clk 0:04:39.8]} 11... Qc7 {[%clk 0:04:35.5]} 12. c3 {[%clk 0:04:33.6]} 12...
dxe4 {[%clk 0:04:31.9]} 13. dxe4 {[%clk 0:04:31.2]} 13... Nc6 {[%clk 0:04:26.8]}
14. Bf3 {[%clk 0:04:15.3]} 14... e5 {[%clk 0:04:21.8]} 15. Qg3 {[%clk
0:04:11.1]} 15... f5 {[%clk 0:04:15.7]} 16. exf5 {[%clk 0:04:03.9]} 16... Bxf5
{[%clk 0:04:11.6]} 17. Bxc6 {[%clk 0:03:57.2]} 17... bxc6 {[%clk 0:04:04.2]} 18.
cxd4 {[%clk 0:03:56]} 18... exd4 {[%clk 0:04:01.6]} 19. Nf2 {[%clk 0:03:53.7]}
19... Rfe8 {[%clk 0:03:56.9]} 20. Bd2 {[%clk 0:03:33.2]} 20... Re2 {[%clk
0:03:53.6]} 21. Qb3+ {[%clk 0:03:23.5]} 21... Kh8 {[%clk 0:03:49.4]} 22. Rad1
{[%clk 0:03:21.9]} 22... Rb8 {[%clk 0:03:44.1]} 23. Qc4 {[%clk 0:03:16.6]} 23...
Rbe8 {[%clk 0:03:39.9]} 24. b4 {[%clk 0:03:02.6]} 24... h5 {[%clk 0:03:34.1]}
25. Nd3 {[%clk 0:02:44.6]} 25... Be6 {[%clk 0:03:20]} 26. Qc1 {[%clk 0:02:41.9]}
26... Bd5 {[%clk 0:03:18.1]} 27. Rf2 {[%clk 0:02:37.6]} 27... h4 {[%clk
0:03:04.4]} 28. h3 {[%clk 0:02:34.9]} 28... Qd7 {[%clk 0:02:56.1]} 29. Rdf1
{[%clk 0:02:32.9]} 29... Qf5 {[%clk 0:02:54.2]} 30. Nc5 {[%clk 0:02:26.6]} 30...
d3 {[%clk 0:02:52.3]} 31. Bc3 {[%clk 0:02:11.8]} 31... Rc2 {[%clk 0:02:43]} 32.
Bxg7+ {[%clk 0:02:09.9]} 32... Kxg7 {[%clk 0:02:41.6]} 33. Qa1+ {[%clk
0:02:08.7]} 33... Kh7 {[%clk 0:02:39.9]} 34. Qd4 {[%clk 0:02:05.4]} 34... Rxf2
{[%clk 0:02:09.3]} 35. Rxf2 {[%clk 0:01:59.9]} 35... Re1+ {[%clk 0:02:07.8]} 36.
Kh2 {[%clk 0:01:59]} 36... Rd1 {[%clk 0:02:06.1]} 37. Qe3 {[%clk 0:01:44.5]}
37... Qf7 {[%clk 0:01:51.8]} 38. Nxd3 {[%clk 0:01:39.2]} 38... Ra1 {[%clk
0:01:39.4]} 39. Ne5 {[%clk 0:01:36.6]} 39... Qf5 {[%clk 0:01:36.3]} 40. Qc3
{[%clk 0:01:33.6]} 40... Qb1 {[%clk 0:01:33.5]} 0-1

[Event "Live Chess"]
[Site "Chess.com"]
[Date "2024.06.02"]
[Round "-"]
[White "juniortay"]
[Black "Grace6363"]
[Result "1-0"]
[WhiteElo "2303"]
[BlackElo "1137"]
[TimeControl "300"]
[EndTime "7:23:54 PDT"]
[Termination "juniortay won by resignation"]

1. e4 {[%clk 0:04:58]} 1... c5 {[%clk 0:04:56.3]} 2. Nf3 {[%clk 0:04:57.6]} 2...
Nc6 {[%clk 0:04:54.4]} 3. b4 {[%clk 0:04:56.7]} 3... b6 {[%clk 0:04:49.3]} 4. b5
{[%clk 0:04:55.5]} 4... Nb8 {[%clk 0:04:45.8]} 5. Bb2 {[%clk 0:04:54.2]} 5... f6
{[%clk 0:04:44.1]} 6. d4 {[%clk 0:04:48.5]} 6... Bb7 {[%clk 0:04:41.1]} 7. Nbd2
{[%clk 0:04:42.7]} 7... d6 {[%clk 0:04:38.2]} 8. Bc4 {[%clk 0:04:40.9]} 8... Nh6
{[%clk 0:04:35.6]} 9. O-O {[%clk 0:04:39.3]} 9... Nd7 {[%clk 0:04:30.4]} 10. Re1
{[%clk 0:04:31.1]} 10... Qc7 {[%clk 0:04:08.2]} 11. e5 {[%clk 0:04:27]} 11... d5
{[%clk 0:04:05.3]} 12. Bf1 {[%clk 0:04:21.1]} 12... Nf5 {[%clk 0:03:59.2]} 13.
exf6 {[%clk 0:04:18.7]} 13... Nxf6 {[%clk 0:03:57.5]} 14. dxc5 {[%clk
0:04:11.8]} 14... bxc5 {[%clk 0:03:53.4]} 15. Ne5 {[%clk 0:03:58.1]} 15... Nh6
{[%clk 0:03:36.5]} 16. Ndf3 {[%clk 0:03:50.6]} 16... Ne4 {[%clk 0:03:29]} 17.
Bd3 {[%clk 0:03:28.2]} 17... O-O-O {[%clk 0:03:16.3]} 18. a4 {[%clk 0:03:21.9]}
18... e6 {[%clk 0:03:09]} 19. a5 {[%clk 0:03:14.1]} 19... c4 {[%clk 0:03:07.9]}
20. b6 {[%clk 0:02:58.3]} 20... Qb8 {[%clk 0:02:49.4]} 21. a6 {[%clk 0:02:52.6]}
21... cxd3 {[%clk 0:02:43.7]} 22. axb7+ {[%clk 0:02:50.4]} 22... Kxb7 {[%clk
0:02:36.5]} 23. bxa7 {[%clk 0:02:48.3]} 23... Qa8 {[%clk 0:02:31.7]} 24. cxd3
{[%clk 0:02:46.8]} 24... Rd6 {[%clk 0:02:22.6]} 25. dxe4 {[%clk 0:02:44.6]}
25... Ra6 {[%clk 0:02:21.2]} 26. Rxa6 {[%clk 0:02:41.9]} 26... Kxa6 {[%clk
0:02:20.6]} 27. Qa4+ {[%clk 0:02:40.2]} 27... Kb7 {[%clk 0:02:18.6]} 28. Qc6+
{[%clk 0:02:37.9]} 28... Kxa7 {[%clk 0:02:16.9]} 29. Ra1+ {[%clk 0:02:36.2]} 1-0

[Event "Live Chess"]
[Site "Chess.com"]
[Date "2024.06.02"]
[Round "-"]
[White "MagnersCarlsberg2870"]
[Black "CheckThis4"]
[Result "0-1"]
[WhiteElo "1782"]
[BlackElo "2681"]
[TimeControl "300"]
[EndTime "7:24:05 PDT"]
[Termination "CheckThis4 won by checkmate"]

1. d4 {[%clk 0:04:57.2]} 1... Nf6 {[%clk 0:04:58.1]} 2. Nf3 {[%clk 0:04:55.8]}
2... g6 {[%clk 0:04:55.6]} 3. Bf4 {[%clk 0:04:51.9]} 3... Bg7 {[%clk 0:04:54.6]}
4. Qd2 {[%clk 0:04:50.9]} 4... c5 {[%clk 0:04:49.4]} 5. Bh6 {[%clk 0:04:44.5]}
5... Ne4 {[%clk 0:04:47.2]} 6. Qe3 {[%clk 0:04:41.3]} 6... Bxh6 {[%clk
0:04:42.9]} 7. Qxh6 {[%clk 0:04:39.1]} 7... Qb6 {[%clk 0:04:37.6]} 8. Qg7 {[%clk
0:04:35.7]} 8... Rf8 {[%clk 0:04:31.6]} 9. Nbd2 {[%clk 0:04:21.2]} 9... Nxd2
{[%clk 0:04:24.5]} 10. Nxd2 {[%clk 0:04:19.7]} 10... Qxb2 {[%clk 0:04:22.9]} 11.
Rd1 {[%clk 0:04:10]} 11... Nc6 {[%clk 0:04:11.7]} 12. e3 {[%clk 0:04:06.9]}
12... Nb4 {[%clk 0:04:02.1]} 13. Bd3 {[%clk 0:03:56.1]} 13... Nxd3+ {[%clk
0:03:57.3]} 14. cxd3 {[%clk 0:03:53.6]} 14... cxd4 {[%clk 0:03:56.8]} 15. O-O
{[%clk 0:03:51.6]} 15... d6 {[%clk 0:03:51]} 16. Ne4 {[%clk 0:03:45.4]} 16...
Bf5 {[%clk 0:03:45.8]} 17. Rb1 {[%clk 0:03:36.9]} 17... Qxa2 {[%clk 0:03:34.9]}
18. Rxb7 {[%clk 0:03:32.5]} 18... Bxe4 {[%clk 0:03:30.9]} 19. dxe4 {[%clk
0:03:30.6]} 19... dxe3 {[%clk 0:03:10.5]} 20. fxe3 {[%clk 0:03:26.6]} 20... Qe6
{[%clk 0:03:09.3]} 21. Rfb1 {[%clk 0:03:18.3]} 21... Rc8 {[%clk 0:02:44]} 22.
Qd4 {[%clk 0:03:11.3]} 22... f6 {[%clk 0:02:39.4]} 23. Rxa7 {[%clk 0:03:06.1]}
23... Kf7 {[%clk 0:02:36.7]} 24. h3 {[%clk 0:03:00.5]} 24... Rfe8 {[%clk
0:02:33]} 25. Rbb7 {[%clk 0:02:54.8]} 25... Rc4 {[%clk 0:02:21.7]} 26. Qb2
{[%clk 0:02:34.3]} 26... Rxe4 {[%clk 0:02:19.2]} 27. Ra6 {[%clk 0:02:17.2]}
27... Rxe3 {[%clk 0:02:13.7]} 28. Ra1 {[%clk 0:02:08.4]} 28... Re2 {[%clk
0:02:07.7]} 29. Qb5 {[%clk 0:01:53.2]} 29... Qe4 {[%clk 0:02:02.2]} 30. Qb3+
{[%clk 0:01:39.5]} 30... Kf8 {[%clk 0:01:52.7]} 31. Rb8 {[%clk 0:01:38.2]} 31...
Qxg2# {[%clk 0:01:50.2]} 0-1